bitfinex/quotes_SOLUSD_20251019
["timestamp","ask_amount","ask_price","bid_price","bid_amount"]
[1760879420357,0.69,188.92,188.89,1e-08]
[1760879420766,0.69,188.91,188.89,1e-08]
[1760879421132,0.66155067,188.95,188.89,1e-08]
[1760879421340,23.57,188.93,188.89,1e-08]
[1760879421654,28.8632201,188.93,188.89,1e-08]
[1760879421840,28.1732201,188.93,188.89,1e-08]
[1760879422041,0.69,188.92,188.89,1e-08]
[1760879422456,0.69,188.91,188.89,1e-08]
[1760879423240,5.29324834,188.92,188.89,1e-08]
[1760879423647,5.98324834,188.92,188.89,1e-08]
[1760879425161,28.17297041,188.93,188.89,1e-08]
[1760879425359,0.69,188.95,188.9,0.68]
[1760879425559,5.98240611,188.95,188.91,0.68]
[1760879425952,0.69,188.94,188.89,26.88000001]
[1760879426150,0.69,188.94,188.89,27.56000001]
[1760879426356,0.69,188.94,188.9,0.68]
[1760879427880,22.88,188.96,188.91,0.68]
[1760879428052,0.69,188.99,188.91,0.68]
[1760879428246,23.57,188.99,188.91,0.68]
[1760879428447,13.22653642,189.02,188.91,0.68]
[1760879428448,0.66134066,189.01,188.91,0.68]
[1760879428754,1.35134066,189.01,188.92,10.87647521]
[1760879428956,23.57,189.01,188.94,5.2926855]
[1760879429144,23.57,189.01,188.95,0.68]
[1760879430967,28.86074046,189.01,188.95,5.97226194]
[1760879431145,0.69,189.0,188.95,5.97226194]
[1760879431345,0.69,188.99,188.95,5.29226194]
[1760879431651,23.57,189.01,188.96,0.68]
[1760879431966,0.69,189.0,188.96,0.68]
[1760879432151,22.88,189.01,188.95,5.29226194]
[1760879432353,22.88,189.01,188.97,0.68]
[1760879432562,0.69,189.0,188.95,0.68]
[1760879432753,0.69,189.0,188.96,0.68]
[1760879433294,28.8320877,189.01,188.94,5.2926855]
[1760879433453,0.69,188.99,188.94,5.9726855]
[1760879433781,0.69,188.99,188.95,0.68]
[1760879434378,0.69,188.99,188.95,5.97224512]
[1760879435154,0.69,189.01,188.96,0.68]
[1760879435452,0.69,189.0,188.96,0.68]
[1760879436061,0.69,189.0,188.96,5.97204875]
[1760879437478,0.69,188.99,188.95,5.29239345]
[1760879437664,0.69,188.99,188.95,5.97239345]
[1760879439279,0.69,188.99,188.96,0.68]
[1760879439660,0.69,188.99,188.95,0.68]
[1760879439860,28.17075102,189.01,188.96,0.68]
[1760879440084,0.69,189.0,188.96,0.68]
[1760879440803,1.35141065,188.99,188.89,0.68000001]
[1760879440961,1.35141065,188.99,188.9,0.68]
[1760879441157,0.69,188.99,188.9,11.55647521]
[1760879441370,0.69,188.99,188.91,0.68]
[1760879441678,0.69,188.99,188.92,26.86]
[1760879441886,0.69,188.98,188.92,26.86]
[1760879442075,0.69,188.97,188.92,26.86]
[1760879442376,0.69,188.97,188.93,0.68]
[1760879442959,5.29156108,188.99,188.93,0.68]
[1760879443184,0.69,188.96,188.92,32.83302785]
[1760879443384,0.69,188.96,188.93,0.68]
[1760879443582,6.64312566,188.98,188.93,0.68]
[1760879443755,0.69,188.97,188.93,0.68]
[1760879446803,23.59,188.96,188.92,26.86]
[1760879446974,0.71,188.95,188.92,26.86]
[1760879447173,0.71,188.94,188.92,26.86]
[1760879447469,0.71,188.94,188.9,5.29362311]
[1760879447667,22.88,188.96,188.9,5.29362311]
[1760879447668,0.71,188.93,188.9,5.29362311]
[1760879447871,0.71,188.93,188.9,66.69362311]
[1760879448092,0.71,188.95,188.9,67.40362311]
[1760879448396,0.71,188.95,188.91,0.71]
[1760879448605,0.71,188.95,188.91,6.00336985]
[1760879449811,0.71,188.95,188.91,5.29336985]
[1760879449982,0.71,188.95,188.91,6.00336985]
[1760879451987,0.71,188.94,188.91,5.29336985]
[1760879452400,0.71,188.94,188.9,6.00380624]
[1760879452592,0.71,188.94,188.91,0.71]
[1760879453100,23.54151566,188.96,188.91,0.71]
[1760879453300,0.71,188.95,188.91,6.0034093]
[1760879453683,22.88,188.96,188.92,0.71]
[1760879454097,22.88,188.96,188.91,5.2934093]
[1760879454295,22.88,188.99,188.93,0.71]
[1760879454486,22.88,188.97,188.93,0.71]
[1760879455099,0.71,188.96,188.92,88.26]
[1760879455298,0.71,188.96,188.92,88.97]
[1760879455603,0.71,188.96,188.92,94.26302503]
[1760879455788,0.71,188.95,188.92,93.55302503]
[1760879455987,29.5433845,188.97,188.92,32.86302503]
[1760879456209,0.71,188.96,188.92,32.86302503]
[1760879457508,22.88,188.97,188.93,0.71]
[1760879457899,23.59,188.97,188.93,0.71]
[1760879459194,22.88,188.97,188.94,0.71]
[1760879461203,22.88,188.97,188.94,5.2925561]
[1760879461418,22.88,188.97,188.95,0.71]
[1760879462100,0.71,188.96,188.93,5.29295348]
[1760879462300,0.71,188.96,188.92,88.26]
[1760879462492,23.59,188.97,188.93,0.71]
[1760879463195,0.71,188.96,188.93,0.71]
[1760879463401,0.71,188.96,188.92,93.55309314]
[1760879463607,0.71,188.95,188.92,94.26309314]
[1760879463809,0.71,188.94,188.91,26.86]
[1760879464296,0.71,188.93,188.91,26.86]
[1760879465289,0.71,188.92,188.89,61.40000001]
[1760879466420,0.71,188.91,188.89,61.40000001]
[1760879466620,0.71,188.91,188.89,1e-08]
[1760879467614,0.71,188.9,188.89,1e-08]
[1760879468628,23.59,188.9,188.89,1e-08]
[1760879469196,0.71,188.9,188.89,1e-08]
[1760879471611,5.29296564,188.93,188.89,1e-08]
[1760879471805,1.37165572,188.92,188.89,1e-08]
[1760879473003,5.29296564,188.93,188.9,0.67]
[1760879473407,6.00296564,188.93,188.9,0.67]
[1760879473923,28.86267166,188.95,188.91,0.66]
[1760879474124,5.98267166,188.95,188.91,0.66]
[1760879474320,28.86267166,188.95,188.91,0.66]
[1760879474821,28.17267166,188.95,188.92,0.66]
[1760879475041,28.86267166,188.95,188.9,0.66]
[1760879475203,28.86267166,188.95,188.91,0.66]
[1760879475604,28.86267166,188.95,188.92,0.66]
[1760879476525,28.86267166,188.95,188.89,5.29397113]
[1760879476714,28.86267166,188.95,188.9,0.66]
[1760879476918,28.86267166,188.95,188.9,5.9536503]
[1760879477128,28.86267166,188.95,188.91,0.66]
[1760879477330,5.98267166,188.95,188.91,0.66]
[1760879477731,0.69,188.95,188.91,0.66]
[1760879478027,0.69,188.95,188.92,0.66]
[1760879478233,28.17253157,188.95,188.9,5.9536503]
[1760879478418,0.69,188.94,188.89,5.29403629]
[1760879478615,0.69,188.93,188.89,5.29403629]
[1760879478826,0.66158568,188.94,188.89,5.29403629]
[1760879479003,0.69,188.92,188.89,5.29403629]
[1760879479211,28.17243938,188.95,188.9,0.66]
[1760879479432,22.88,188.95,188.9,0.66]
[1760879479729,0.69,188.94,188.91,0.66]
[1760879480122,22.88,188.95,188.89,5.95403629]
[1760879480315,0.69,188.94,188.89,5.95403629]
[1760879480517,1.3516207,188.93,188.89,1e-08]
[1760879481220,6.64469165,188.93,188.89,1e-08]
[1760879481408,22.88,188.9,188.89,1e-08]
[1760879481816,23.57,188.9,188.89,1e-08]
[1760879483112,28.86380624,188.9,188.89,1e-08]
[1760879483832,39.74028145,188.9,188.89,1e-08]
[1760879484240,66.60028145,188.9,188.89,1e-08]
[1760879484422,68.72302934,188.9,188.89,1e-08]
[1760879484838,41.86302934,188.9,188.89,1e-08]
[1760879485140,68.72302934,188.9,188.89,1e-08]
[1760879485344,41.86302934,188.9,188.89,1e-08]
[1760879485512,68.72302934,188.9,188.89,1e-08]
[1760879485842,41.86302934,188.9,188.89,1e-08]
[1760879486130,0.69,188.92,188.89,1e-08]
[1760879487438,5.95477661,188.93,188.89,1e-08]
[1760879487633,29.52477661,188.93,188.89,1e-08]
[1760879488026,28.83477661,188.93,188.89,1e-08]
[1760879488228,5.98325275,188.92,188.89,1e-08]
[1760879492944,1.35169075,188.91,188.89,1e-08]
[1760879493629,22.88,188.9,188.89,1e-08]
[1760879494049,23.57,188.9,188.89,1e-08]
[1760879494746,0.69,188.9,188.89,1e-08]
[1760879494951,5.98380624,188.9,188.89,1e-08]
[1760879496144,32.84380624,188.9,188.89,1e-08]
[1760879496341,5.98380624,188.9,188.89,1e-08]
[1760879496526,32.84380624,188.9,188.89,1e-08]
[1760879497132,28.86380624,188.9,188.89,1e-08]
[1760879497457,8.10632885,188.9,188.89,1e-08]
[1760879497634,34.96632885,188.9,188.89,1e-08]
[1760879497827,30.98632885,188.9,188.89,1e-08]
[1760879498046,45.84280406,188.9,188.89,1e-08]
[1760879498430,18.98280406,188.9,188.89,1e-08]
[1760879498748,45.84280406,188.9,188.89,1e-08]
[1760879498931,18.98280406,188.9,188.89,1e-08]
[1760879499454,45.84280406,188.9,188.89,1e-08]
[1760879500239,18.98280406,188.9,188.89,1e-08]
[1760879501050,45.84280406,188.9,188.89,1e-08]
[1760879512954,33.75647521,188.87,188.86,0.2]
[1760879513132,60.61647521,188.87,188.86,0.2]
[1760879513339,61.32647521,188.87,188.86,0.2]
[1760879513636,63.44956111,188.87,188.86,0.2]
[1760879515960,68.74420822,188.87,188.86,0.2]
[1760879517056,41.88420822,188.87,188.86,0.2]
[1760879517255,68.74420822,188.87,188.86,0.2]
[1760879519962,68.74420822,188.87,188.86,1e-08]
[1760879520263,69.4060391,188.87,188.86,1e-08]
[1760879521065,42.5460391,188.87,188.86,1e-08]
[1760879521242,69.4060391,188.87,188.86,1e-08]
[1760879521445,10.87647521,188.86,188.85,1e-08]
[1760879521860,11.58647521,188.86,188.85,1e-08]
[1760879522062,16.88140266,188.86,188.85,1e-08]
[1760879522270,19.00482668,188.86,188.85,1e-08]
[1760879523387,22.88,188.84,188.83,1e-08]
[1760879523542,50.42193603,188.84,188.83,1e-08]
[1760879523843,62.00841124,188.84,188.83,1e-08]
[1760879524043,69.42754897,188.84,188.83,1e-08]
[1760879529572,22.88,188.76,188.7,0.76]
[1760879529873,22.88,188.72,188.7,0.76]
[1760879530054,22.88,188.72,188.71,0.66]
[1760879530773,28.17885544,188.72,188.71,0.66]
[1760879531475,28.17885544,188.72,188.7,0.1]
[1760879531658,0.66239203,188.71,188.7,0.1]
[1760879532579,28.84152827,188.71,188.7,0.1]
[1760879532759,30.96608012,188.71,188.7,0.1]
[1760879534576,28.84152827,188.71,188.7,0.78]
[1760879534970,23.54239203,188.71,188.7,0.78]
[1760879535171,22.88,188.71,188.7,0.78]
[1760879536282,0.66211134,188.79,188.7,0.78]
[1760879536578,22.88,188.76,188.7,0.78]
[1760879536760,22.88,188.76,188.7,6.07935916]
[1760879537077,22.88,188.75,188.71,0.68]
[1760879537252,0.66218149,188.77,188.71,0.68]
[1760879538081,22.88,188.75,188.71,0.68]
[1760879538386,0.66228674,188.74,188.71,0.68]
[1760879539280,5.96067297,188.74,188.71,0.68]
[1760879539456,5.96067297,188.74,188.7,0.1]
[1760879539658,22.88,188.75,188.71,0.68]
[1760879539852,22.88,188.75,188.72,0.68]
[1760879541585,28.17806284,188.75,188.72,0.68]
[1760879542382,0.66228674,188.74,188.72,0.68]
[1760879542580,0.66228674,188.74,188.7,0.1]
[1760879542884,28.17806284,188.75,188.71,0.68]
[1760879543388,22.88,188.75,188.72,0.68]
[1760879545166,0.66228674,188.74,188.7,0.1]
[1760879545364,5.95996625,188.76,188.71,0.68]
[1760879545564,22.88,188.75,188.72,0.68]
[1760879545990,22.88,188.75,188.7,0.1]
[1760879546183,22.88,188.75,188.7,0.78]
[1760879546978,28.1781401,188.75,188.7,0.78]
[1760879547371,28.1781401,188.75,188.7,6.07940352]
[1760879547891,22.88,188.75,188.71,0.68]
[1760879548480,0.66228674,188.74,188.7,0.1]
[1760879548988,22.88,188.75,188.7,6.07929748]
[1760879549374,22.88,188.75,188.71,0.68]
[1760879549974,0.66228674,188.74,188.7,0.1]
[1760879550676,0.66228674,188.74,188.7,0.78]
[1760879551395,5.96081344,188.74,188.7,0.78]
[1760879551896,5.96081344,188.74,188.7,0.1]
[1760879552795,22.88,188.74,188.71,0.68]
[1760879553995,22.88,188.75,188.72,0.68]
[1760879555079,28.17802528,188.75,188.72,0.68]
[1760879555395,28.17802528,188.75,188.7,6.07940702]
[1760879556995,28.17802528,188.75,188.7,5.39940702]
[1760879557201,28.17802528,188.75,188.71,0.68]
[1760879557702,28.17802528,188.75,188.7,5.39940702]
[1760879557887,28.17802528,188.75,188.7,6.07940702]
[1760879558692,0.66218149,188.77,188.7,18.64794968]
[1760879558884,5.29722295,188.78,188.71,0.68]
[1760879559286,5.97722295,188.78,188.71,0.68]
[1760879560611,5.97722295,188.78,188.72,5.29885544]
[1760879560790,5.97722295,188.78,188.72,5.97885544]
[1760879561505,0.68,188.77,188.72,5.97885544]
[1760879561998,0.68,188.77,188.72,0.68]
[1760879562299,0.68,188.77,188.73,0.68]
[1760879563891,6.63974692,188.77,188.7,6.08913685]
[1760879564085,0.68,188.76,188.7,6.08913685]
[1760879564284,0.68,188.75,188.7,6.08913685]
[1760879564485,0.68,188.74,188.7,6.08913685]
[1760879564696,0.68,188.76,188.7,5.39913685]
[1760879565103,5.95974692,188.77,188.71,0.69]
[1760879565302,0.66214641,188.78,188.71,0.69]
[1760879565806,28.85715605,188.79,188.71,0.69]
[1760879565996,0.68,188.79,188.71,0.69]
[1760879566195,1.34211134,188.79,188.71,0.69]
[1760879566402,6.63902814,188.79,188.71,0.69]
[1760879567000,6.63902814,188.79,188.72,5.29885544]
[1760879567192,6.63902814,188.79,188.73,0.69]
[1760879567392,0.68,188.78,188.73,0.69]
[1760879567591,0.68,188.77,188.73,0.69]
[1760879567787,0.68,188.77,188.72,5.29885544]
[1760879568105,0.68,188.76,188.71,5.29910432]
[1760879568615,0.68,188.75,188.71,5.29910432]
[1760879568990,0.68,188.74,188.7,6.0893811]
[1760879569187,0.68,188.73,188.7,5.3993811]
[1760879569393,23.54221657,188.76,188.7,5.3993811]
[1760879569600,0.68,188.78,188.71,0.69]
[1760879570505,28.85664205,188.8,188.71,0.69]
[1760879570711,28.85664205,188.8,188.71,62.09]
[1760879570906,28.85664205,188.8,188.72,0.69]
[1760879571103,28.85664205,188.8,188.73,5.29857468]
[1760879571502,28.85664205,188.8,188.74,0.69]
[1760879572115,0.66211134,188.79,188.74,0.69]
[1760879572308,0.68,188.78,188.74,0.69]
[1760879572814,0.68,188.77,188.74,0.69]
[1760879573013,0.68,188.77,188.73,5.29857468]
[1760879573207,5.95900484,188.79,188.73,5.98857468]
[1760879573392,0.68,188.78,188.73,5.98857468]
[1760879573589,0.68,188.77,188.73,5.98857468]
[1760879574014,0.68,188.76,188.71,61.4]
[1760879574211,0.68,188.75,188.7,6.08920448]
[1760879574418,0.68,188.75,188.7,5.39920448]
[1760879574593,0.68,188.75,188.71,0.69]
[1760879574992,28.17794745,188.76,188.7,5.39920448]
[1760879575301,0.68,188.74,188.7,0.1]
[1760879576211,5.29857468,188.73,188.7,0.1]
[1760879576415,0.68,188.72,188.7,0.1]
[1760879576601,0.68,188.71,188.7,0.1]
[1760879581517,5.97913624,188.71,188.7,0.1]
[1760879584510,6.47913624,188.71,188.7,0.1]
[1760879588130,8.60357525,188.71,188.7,0.1]
[1760879588425,6.47913624,188.71,188.7,0.1]
[1760879591519,0.5,188.71,188.7,0.1]
[1760879591723,0.5,188.71,188.7,0.77]
[1760879592108,28.67913624,188.71,188.7,0.1]
[1760879592824,23.38,188.71,188.7,0.77]
[1760879593129,23.38,188.71,188.7,0.1]
[1760879593321,28.67913624,188.71,188.7,0.1]
[1760879597135,29.35913624,188.71,188.7,0.1]
[1760879605034,0.5,188.71,188.7,0.1]
[1760879605237,22.88,188.72,188.7,0.1]
[1760879605238,0.66211134,188.79,188.7,6.10941706]
[1760879605538,0.66207627,188.8,188.71,0.71]
[1760879605735,5.95872114,188.8,188.71,0.71]
[1760879605915,5.95872114,188.8,188.71,16.63483477]
[1760879606116,0.68,188.79,188.72,0.71]
[1760879606316,22.88,188.77,188.71,0.71]
[1760879606544,0.66221657,188.76,188.71,0.71]
[1760879606716,28.85754133,188.77,188.72,0.71]
[1760879606916,28.85754133,188.77,188.73,0.71]
[1760879607217,28.17754133,188.77,188.74,0.71]
[1760879607518,28.17754133,188.77,188.72,0.71]
[1760879608243,0.66200614,188.82,188.73,6.00852396]
[1760879608433,5.29606609,188.82,188.74,0.71]
[1760879608736,6.63783922,188.83,188.74,0.71]
[1760879609036,1.34197108,188.83,188.75,10.87647521]
[1760879609237,1.34197108,188.83,188.76,0.71]
[1760879609424,6.6377684,188.83,188.76,0.71]
[1760879610230,6.6377684,188.83,188.77,5.29745192]
[1760879610730,6.6377684,188.83,188.77,6.00745192]
[1760879611238,6.6377684,188.83,188.77,0.71]
[1760879611534,0.66193603,188.84,188.77,0.71]
[1760879611712,6.63748289,188.84,188.77,0.71]
[1760879612425,6.63748289,188.84,188.77,6.00729095]
[1760879612619,0.68,188.83,188.77,6.00729095]
[1760879612815,5.95748289,188.84,188.73,88.28]
[1760879613015,0.68,188.82,188.74,0.71]
[1760879613933,6.63748289,188.84,188.75,10.87647521]
[1760879614120,6.63748289,188.84,188.76,0.71]
[1760879614625,6.63748289,188.84,188.77,5.29745192]
[1760879614921,0.68,188.83,188.77,6.00745192]
[1760879615540,5.97586022,188.83,188.77,6.00745192]
[1760879615936,5.29586022,188.83,188.77,0.71]
[1760879616131,1.34200614,188.82,188.75,62.11]
[1760879616737,1.34200614,188.82,188.75,61.4]
[1760879616927,1.34200614,188.82,188.76,0.71]
[1760879617338,0.66200614,188.82,188.76,0.71]
[1760879617540,28.83813802,188.82,188.76,6.00766998]
[1760879617843,29.51813802,188.82,188.76,6.00766998]
[1760879618540,28.83813802,188.82,188.76,6.00766998]
[1760879618745,0.68,188.81,188.76,6.00766998]
[1760879619042,0.68,188.81,188.77,0.71]
[1760879619437,0.68,188.81,188.75,5.29801324]
[1760879619647,0.68,188.81,188.75,6.00801324]
[1760879619939,0.68,188.8,188.74,26.88]
[1760879620140,0.68,188.79,188.74,26.88]
[1760879620323,0.6620412,188.81,188.75,0.71]
[1760879620525,1.3420412,188.81,188.75,0.71]
[1760879621256,1.3420412,188.81,188.74,5.29829169]
[1760879621443,0.68,188.8,188.73,6.00854539]
[1760879621641,0.68,188.79,188.73,6.00854539]
[1760879621945,0.68,188.78,188.73,6.00854539]
[1760879622243,0.68,188.78,188.74,0.71]
[1760879623447,5.9772449,188.78,188.72,32.88883321]
[1760879623826,5.9772449,188.78,188.73,0.7]
[1760879624339,1.34197108,188.83,188.74,10.87647521]
[1760879624545,22.88,188.82,188.75,0.7]
[1760879624732,0.68,188.81,188.75,27.58]
[1760879624923,0.66197108,188.83,188.76,0.7]
[1760879625136,22.88,188.82,188.76,0.7]
[1760879625336,22.88,188.82,188.76,5.99752527]
[1760879625649,23.56,188.82,188.76,5.99752527]
[1760879625947,10.2351643,188.85,188.77,0.7]
[1760879626129,0.68,188.84,188.77,0.7]
[1760879626950,5.97554703,188.84,188.78,5.29717131]
[1760879627252,5.97554703,188.84,188.78,5.99717131]
[1760879628031,5.97464711,188.87,188.79,0.7]
[1760879628231,22.88,188.86,188.79,27.58]
[1760879628467,22.88,188.86,188.8,0.7]
[1760879628932,0.68,188.87,188.8,0.7]
[1760879629246,1.34183088,188.87,188.8,0.7]
[1760879630263,5.29492745,188.86,188.8,5.99641946]
[1760879630453,0.68,188.85,188.8,5.99641946]
[1760879630657,0.68,188.84,188.8,5.99641946]
[1760879631260,5.97492745,188.86,188.8,5.99641946]
[1760879633742,0.68,188.85,188.8,5.29641946]
[1760879634053,5.29492745,188.86,188.8,5.99641946]
[1760879634246,0.68,188.85,188.8,5.99641946]
[1760879634755,0.68,188.84,188.8,5.99641946]
[1760879634955,0.68,188.83,188.79,61.4]
[1760879635143,23.56,188.82,188.79,61.4]
[1760879635345,22.88,188.82,188.79,61.4]
[1760879635654,23.56,188.82,188.79,61.4]
[1760879636056,0.68,188.82,188.79,61.4]
[1760879636856,0.68,188.81,188.79,61.4]
[1760879637053,0.68,188.81,188.77,5.99724846]
[1760879638143,6.63783785,188.83,188.77,5.99724846]
[1760879638738,5.95783785,188.83,188.77,5.99724846]
[1760879638934,0.68,188.82,188.77,5.99724846]
[1760879639158,0.68,188.81,188.77,5.99724846]
[1760879639954,5.97586677,188.83,188.78,0.7]
[1760879640150,0.68,188.82,188.78,0.7]
[1760879640463,5.29549255,188.84,188.79,0.7]
[1760879640841,0.68,188.83,188.76,18.54206399]
[1760879641063,0.68,188.83,188.77,0.7]
[1760879641264,23.56,188.86,188.78,10.87647521]
[1760879641571,23.56,188.86,188.79,27.56]
[1760879641742,22.88,188.86,188.79,27.56]
[1760879642063,0.68,188.85,188.8,5.29661016]
[1760879642241,0.66176081,188.89,188.81,0.7]
[1760879642446,0.68,188.88,188.81,0.7]
[1760879642850,1.34179584,188.88,188.8,32.17661016]
[1760879643055,0.68,188.87,188.8,32.87661016]
[1760879643266,0.68,188.86,188.8,32.87661016]
[1760879643955,5.95624185,188.88,188.8,32.17661016]
[1760879644265,0.68,188.88,188.81,0.7]
[1760879644452,28.85422554,188.89,188.81,0.7]
[1760879645471,0.68,188.89,188.83,10.87647521]
[1760879645643,5.95547769,188.91,188.84,0.7]
[1760879645842,5.97327372,188.92,188.84,27.58]
[1760879646053,22.88,188.91,188.85,0.7]
[1760879646250,23.56,188.91,188.85,0.7]
[1760879646763,0.68,188.91,188.85,0.7]
[1760879647063,22.88,188.92,188.85,0.7]
[1760879647267,23.56,188.92,188.85,0.7]
[1760879647558,23.56,188.92,188.86,5.29492745]
[1760879647762,23.56,188.92,188.87,0.7]
[1760879647977,22.88,188.92,188.86,5.29492745]
[1760879648182,0.68,188.91,188.86,5.29492745]
[1760879648346,28.17326242,188.92,188.86,5.29492745]
[1760879648546,0.68,188.9,188.86,5.29492745]
[1760879648760,0.68,188.89,188.86,5.29492745]
[1760879649078,0.68,188.88,188.84,32.17522706]
[1760879649281,0.68,188.88,188.84,32.87522706]
[1760879650073,0.68,188.91,188.85,0.7]
[1760879650660,0.9,188.94,188.86,10.87647521]
[1760879650964,0.9,188.94,188.88,10.87647521]
[1760879651166,0.9,188.94,188.89,26.92]
[1760879651363,0.9,188.94,188.89,27.64]
[1760879651564,0.9,188.94,188.9,5.29380624]
[1760879651985,0.2,188.94,188.9,5.29380624]
[1760879652157,0.2,188.94,188.91,0.72]
[1760879652874,0.2,188.94,188.9,6.01380624]
[1760879653049,0.2,188.94,188.9,5.29380624]
[1760879653256,0.2,188.94,188.9,6.01380624]
[1760879653468,0.2,188.94,188.89,26.92]
[1760879653469,0.2,188.94,188.91,6.01342539]
[1760879653872,0.88,188.94,188.91,5.29342539]
[1760879654177,0.88,188.94,188.91,5.97342539]
[1760879654178,0.2,188.94,188.91,5.97342539]
[1760879655060,0.2,188.94,188.92,0.68]
[1760879655594,0.2,188.94,188.93,0.68]
[1760879655761,0.2,188.94,188.93,27.6]
[1760879657056,0.2,188.94,188.93,32.21296564]
[1760879657294,0.88,188.94,188.93,26.92]
[1760879657582,0.2,188.94,188.93,26.92]
[1760879658080,0.88,188.94,188.9,5.29357501]
[1760879658377,0.88,188.94,188.91,26.9]
[1760879658678,0.68,188.93,188.86,5.29492745]
[1760879658877,6.1543905,188.94,188.86,5.29492745]
[1760879658878,0.68,188.92,188.87,26.92]
[1760879659184,0.68,188.91,188.87,32.21455929]
[1760879663072,5.29308772,188.93,188.86,5.29492745]
[1760879663272,0.68,188.9,188.87,26.9]
[1760879663485,5.97308772,188.93,188.88,0.68]
[1760879663673,0.68,188.92,188.87,26.9]
[1760879664082,0.68,188.91,188.87,27.58]
[1760879664269,0.68,188.91,188.87,32.8744522]
[1760879666016,0.68,188.9,188.87,32.1944522]
[1760879666669,0.68,188.92,188.87,32.1944522]
[1760879666870,0.68,188.92,188.87,32.8744522]
[1760879667210,0.68,188.91,188.83,32.09226501]
[1760879667374,23.56,188.9,188.82,0.68]
[1760879667575,0.66176081,188.89,188.8,0.68]
[1760879667785,0.68,188.88,188.79,5.29689072]
[1760879667973,1.34183088,188.87,188.78,32.19715565]
[1760879668172,0.68,188.86,188.78,32.19715565]
[1760879668374,1.34190097,188.85,188.78,32.19715565]
[1760879668583,0.68,188.84,188.78,26.9]
[1760879668893,0.68,188.83,188.78,26.9]
[1760879669098,0.68,188.82,188.78,26.9]
[1760879669305,23.56,188.81,188.73,0.68]
[1760879669600,0.66207627,188.8,188.74,26.92]
[1760879669796,0.68,188.79,188.74,26.92]
[1760879669996,0.68,188.78,188.74,26.92]
[1760879670211,0.68,188.77,188.74,26.92]
[1760879670602,0.68,188.77,188.73,0.68]
[1760879670809,0.68,188.77,188.72,26.92]
[1760879671104,0.68,188.77,188.72,32.89873874]
[1760879671409,5.97716432,188.79,188.73,0.68]
[1760879672201,5.97716432,188.79,188.73,5.97842374]
[1760879672588,0.68,188.82,188.74,0.68]
[1760879672806,0.68,188.85,188.75,10.87647521]
[1760879672994,0.68,188.85,188.77,10.87647521]
[1760879673182,0.68,188.85,188.78,0.68]
[1760879673382,23.56,188.85,188.78,0.68]
[1760879673589,0.66193603,188.84,188.78,0.68]
[1760879673800,0.68,188.83,188.76,27.6]
[1760879674306,0.68,188.83,188.77,5.29745192]
[1760879674505,0.68,188.83,188.77,5.97745192]
[1760879675982,0.68,188.83,188.77,5.29745192]
[1760879676183,23.56,188.85,188.78,0.68]
[1760879676406,28.85523644,188.85,188.79,5.29689072]
[1760879676600,0.66193603,188.84,188.79,5.29689072]
[1760879676799,0.68,188.83,188.79,5.29689072]
[1760879677187,28.17523644,188.85,188.79,5.29689072]
[1760879677400,22.88,188.85,188.8,0.68]
[1760879677596,23.56,188.85,188.79,5.29689072]